fUST/lending_fUST_20260304
["ID","MTS","AMOUNT","RATE_DAILY","PERIOD"]
[407659811,1772620313762,-232.91329803,0.00010867,2]
[407659812,1772620318185,431.0,0.00010593,2]
[407659818,1772620679872,168.31,3.436e-05,2]
[407659819,1772620680287,168.31,3.436e-05,2]
[407659820,1772620680833,168.31,3.436e-05,2]
[407659821,1772620882936,168.9333008,4.917e-05,2]
[407659829,1772621251028,4243.657823,0.000152,120]
[407659839,1772621402667,150.73,6.9e-05,2]
[407659878,1772621432086,-3169.1363388,9.8e-05,2]
[407659880,1772621432097,-315.42305556,9.8e-05,2]
[407659883,1772621432107,-557.0,9.8e-05,2]
[407659885,1772621432117,-3744.56106809,9.899e-05,2]
[407659886,1772621432126,-450.34143327,9.949e-05,2]
[407659889,1772621432137,-300.0,9.998e-05,2]
[407659891,1772621432147,-300.0,9.998e-05,2]
[407659893,1772621432156,-1200.0,9.998e-05,2]
[407659895,1772621432165,-500.0,9.999e-05,2]
[407659896,1772621432175,-500.0,9.999e-05,2]
[407659898,1772621432184,-317.50355437,9.999e-05,2]
[407659900,1772621432194,-500.0,9.999e-05,2]
[407659902,1772621432204,-342.12585006,9.999e-05,2]
[407659904,1772621432215,-18.26782365,9.999e-05,2]
[407659906,1772621432224,-394.60565239,9.999e-05,2]
[407659908,1772621432233,-500.0,9.999e-05,2]
[407659910,1772621432241,-500.0,9.999e-05,2]
[407659912,1772621432250,-500.0,9.999e-05,2]
[407659914,1772621432260,-500.0,9.999e-05,2]
[407659915,1772621432269,-414.47528556,9.999e-05,2]
[407659916,1772621432278,-500.0,9.999e-05,2]
[407659917,1772621432287,-500.0,9.999e-05,2]
[407659918,1772621432297,-500.0,9.999e-05,2]
[407659919,1772621432306,-500.0,9.999e-05,2]
[407659920,1772621432316,-500.0,9.999e-05,2]
[407659922,1772621432325,-500.0,9.999e-05,2]
[407659924,1772621432334,-500.0,9.999e-05,2]
[407659926,1772621432343,-500.0,9.999e-05,2]
[407659927,1772621432352,-500.0,9.999e-05,2]
[407659929,1772621432361,-500.0,9.999e-05,2]
[407659931,1772621432370,-500.0,9.999e-05,2]
[407659933,1772621432379,-500.0,9.999e-05,2]
[407659935,1772621432389,-500.0,9.999e-05,2]
[407659937,1772621432398,-500.0,9.999e-05,2]
[407659939,1772621432408,-500.0,9.999e-05,2]
[407659940,1772621432416,-500.0,9.999e-05,2]
[407659941,1772621432425,-500.0,9.999e-05,2]
[407659942,1772621432435,-339.24031559,9.999e-05,2]
[407659943,1772621432444,-55486.62762086,0.0001,2]
[407659944,1772621432455,-1970.55610494,0.0001,2]
[407659982,1772621440850,-7141.4,0.0001,2]
[407659983,1772621440861,-34555.5,0.0001,2]
[407659984,1772621440881,-971.19022985,0.0001,2]
[407660059,1772621446076,-855.86,0.0001,2]
[407660065,1772621446131,-8025.17483751,0.0001,2]
[407660068,1772621446143,-22737.69120684,0.0001,2]
[407660069,1772621446152,-500.0,0.00010199,2]
[407660072,1772621446162,-1029.92374177,0.00010199,2]
[407660073,1772621446171,-300.0,0.00010199,2]
[407660076,1772621446180,-300.0,0.00010199,2]
[407660078,1772621446190,-300.0,0.00010199,2]
[407660080,1772621446199,-300.0,0.00010199,2]
[407660082,1772621446208,-300.0,0.00010199,2]
[407660084,1772621446218,-300.0,0.00010199,2]
[407660086,1772621446227,-300.0,0.00010199,2]
[407660087,1772621446236,-300.0,0.00010199,2]
[407660089,1772621446245,-300.0,0.00010199,2]
[407660091,1772621446254,-300.0,0.00010199,2]
[407660094,1772621446264,-300.0,0.00010199,2]
[407660096,1772621446274,-300.0,0.00010199,2]
[407660098,1772621446284,-300.0,0.00010199,2]
[407660100,1772621446293,-300.0,0.00010199,2]
[407660102,1772621446302,-300.0,0.00010199,2]
[407660104,1772621446312,-600.0,0.00010199,2]
[407660106,1772621446322,-250.0,0.00010411,2]
[407660108,1772621446331,-500.0,0.00010473,2]
[407660109,1772621446340,-431.0,0.00010593,2]
[407660110,1772621446349,-228.322,0.00010593,2]
[407660111,1772621446357,-150.495,0.00010593,2]
[407660112,1772621446366,-150.572,0.00010593,2]
[407660113,1772621446375,-250.0,0.00010593,2]
[407660114,1772621446383,-150.303,0.00010593,2]
[407660115,1772621446392,-225.637,0.00010593,2]
[407660116,1772621446402,-150.0,0.00010684,2]
[407660117,1772621446411,-503.86496838,0.000107,2]
[407660118,1772621446420,-150.0,0.00010739,2]
[407660119,1772621446429,-500.0,0.00010747,2]
[407660120,1772621446438,-2230.315306,0.00010948,2]
[407660121,1772621446447,-168.3888056,0.00010951,2]
[407660122,1772621446456,-174.61919141,0.00010951,2]
[407660123,1772621446465,-181.08010149,0.00010951,2]
[407660124,1772621446475,-557.5788265,0.00010951,2]
[407660125,1772621446484,-187.78006525,0.00010951,2]
[407660126,1772621446494,-194.72792766,0.00010951,2]
[407660127,1772621446503,-201.93286099,0.00010951,2]
[407660128,1772621446513,-209.40437684,0.00010951,2]
[407660129,1772621446523,-217.15233878,0.00010951,2]
[407660130,1772621446532,-225.18697532,0.00010951,2]
[407660132,1772621446542,-233.51889341,0.00010951,2]
[407660134,1772621446551,-242.15909246,0.00010951,2]
[407660136,1772621446561,-251.11897888,0.00010951,2]
[407660138,1772621446569,-260.4103811,0.00010951,2]
[407660140,1772621446579,-270.0455652,0.00010951,2]
[407660142,1772621446588,-275.80463872,0.00010951,2]
[407660144,1772621446598,-4139.0,0.00010957,2]
[407660146,1772621446608,-174.931,0.00010957,2]
[407660148,1772621446618,-590.14,0.00010958,2]
[407660150,1772621446627,-435.94561763,0.00010958,2]
[407660152,1772621446636,-641.98087136,0.00010958,2]
[407660154,1772621446645,-500.0,0.00010958,2]
[407660156,1772621446655,-500.0,0.00010958,2]
[407660158,1772621446665,-559.21,0.00010958,2]
[407660160,1772621446674,-958.6,0.00010958,2]
[407660162,1772621446682,-500.0,0.00010958,2]
[407660164,1772621446691,-500.0,0.00010958,2]
[407660166,1772621446700,-725.65,0.00010958,2]
[407660168,1772621446709,-500.0,0.00010958,2]
[407660170,1772621446718,-624.31,0.00010958,2]
[407660172,1772621446727,-717.2,0.00010958,2]
[407660173,1772621446737,-500.0,0.00010958,2]
[407660175,1772621446746,-500.0,0.00010958,2]
[407660178,1772621446756,-1768.92,0.00010958,2]
[407660180,1772621446766,-928.08,0.00010958,2]
[407660182,1772621446775,-500.0,0.00010958,2]
[407660183,1772621446784,-500.0,0.00010958,2]
[407660185,1772621446793,-704.45,0.00010958,2]
[407660187,1772621446802,-500.0,0.00010958,2]
[407660188,1772621446812,-11316.40169422,0.00010958,2]
[407660189,1772621446825,-9623.57703588,0.00010958,2]
[407660190,1772621446837,-1105.04741881,0.00010958,2]
[407660191,1772621446849,-320.95258119,0.00010958,2]
[407660192,1772621446878,-349.25741881,0.00010958,2]
[407660193,1772621446888,-2300.53,0.00010958,2]
[407660194,1772621446897,-500.0,0.00010958,2]
[407660195,1772621446908,-500.0,0.00010958,2]
[407660196,1772621446917,-1673.01,0.00010958,2]
[407660197,1772621446928,-500.0,0.00010958,2]
[407660198,1772621446939,-500.0,0.00010958,2]
[407660199,1772621446950,-500.0,0.00010958,2]
[407660200,1772621446959,-310.32089047,0.00010958,2]
[407660201,1772621542497,10000.0,0.000157,120]
[407660202,1772621555729,10000.0,0.000157,120]
[407660207,1772622483126,176.73,2.997e-05,2]
[407660208,1772622483492,176.72,2.997e-05,2]
[407660238,1772622632084,-5000.0,7.639e-05,2]
[407660240,1772622632093,-446.8416099,7.678e-05,2]
[407660242,1772622632103,-725.28041488,7.716e-05,2]
[407660259,1772622632258,-1744.52839776,7.716e-05,2]
[407660390,1772622638279,-1289.70641936,7.716e-05,2]
[407660393,1772622638291,-1240.484768,7.716e-05,2]
[407660395,1772622638300,-530.0,7.794e-05,2]
[407660397,1772622638310,-1200.0,7.872e-05,2]
[407660399,1772622638319,-300.0,7.952e-05,2]
[407660401,1772622638329,-300.0,7.952e-05,2]
[407660403,1772622638338,-1452.83214875,8.279e-05,2]
[407660405,1772622638349,-56.20606805,8.279e-05,2]
[407660407,1772622638361,-500.0,8.442e-05,2]
[407660409,1772622638371,-500.0,8.442e-05,2]
[407660411,1772622638380,-157.16392062,8.442e-05,2]
[407660413,1772622638389,-17245.89861247,8.443e-05,2]
[407660415,1772622638399,-300.0,8.444e-05,2]
[407660417,1772622638409,-300.0,8.444e-05,2]
[407660419,1772622638419,-300.0,8.444e-05,2]
[407660421,1772622638428,-300.0,8.444e-05,2]
[407660423,1772622638439,-300.0,8.444e-05,2]
[407660425,1772622638449,-300.0,8.444e-05,2]
[407660427,1772622638458,-300.0,8.444e-05,2]
[407660429,1772622638468,-300.0,8.444e-05,2]
[407660431,1772622638478,-300.0,8.444e-05,2]
[407660433,1772622638487,-300.0,8.444e-05,2]
[407660435,1772622638497,-300.0,8.444e-05,2]
[407660437,1772622638507,-300.0,8.444e-05,2]
[407660439,1772622638517,-300.0,8.444e-05,2]
[407660441,1772622638527,-300.0,8.444e-05,2]
[407660443,1772622638536,-300.0,8.444e-05,2]
[407660445,1772622638545,-4659.0652777,8.598e-05,2]
[407660447,1772622638554,-600.0,8.612e-05,2]
[407660449,1772622638563,-1680.0,8.659e-05,2]
[407660451,1772622638572,-179.347116,8.971e-05,2]
[407660453,1772622638582,-250.0,9.174e-05,2]
[407660455,1772622638591,-720.0,9.473e-05,2]
[407660457,1772622638601,-1612.0,9.525e-05,2]
[407660459,1772622638610,-527.27309969,9.678e-05,2]
[407660461,1772622638620,-1230.50447546,0.0001,2]
[407660463,1772622638629,-367.392333,0.00010017,2]
[407660465,1772622638639,-12416.79591785,0.00010156,2]
[407660467,1772622638648,-824.74,0.00010259,2]
[407660469,1772622638657,-3348.07473995,0.00010359,2]
[407660471,1772622638667,-2000.0,0.000104,2]
[407660473,1772622638676,-864.0,0.0001042,2]
[407660475,1772622638685,-367.392333,0.00010439,2]
[407660477,1772622638695,-2000.0,0.000105,2]
[407660480,1772622638704,-276.22395667,0.0001051,2]
[407660482,1772622638713,-557.5788265,0.00010511,2]
[407660484,1772622638723,-2230.315306,0.00010511,2]
[407660486,1772622638732,-500.0,0.00010511,2]
[407660488,1772622638741,-174.932,0.00010747,2]
[407660489,1772622638751,-500.0,0.00010785,2]
[407660492,1772622638761,-367.392333,0.00010861,2]
[407660494,1772622638770,-3000.0,0.000109,30]
[407660496,1772622638779,-2000.0,0.000109,2]
[407660498,1772622638789,-2000.0,0.000109,2]
[407660500,1772622638799,-2605.37311128,0.0001091,30]
[407660502,1772622638811,-394.62688872,0.0001091,30]
[407660504,1772622638822,-530.84849561,0.0001092,30]
[407660533,1772622640827,-467.09992443,7.639e-05,2]
[407660566,1772622643260,-3232.90007557,7.639e-05,2]
[407660568,1772622643269,-2469.15150439,0.0001092,30]
[407660570,1772622643279,-92.42048637,0.0001093,30]
[407660572,1772622643312,-771.99000221,0.0001093,30]
[407660573,1772622643372,-936.05917051,0.0001093,30]
[407660591,1772622646231,-500.0,0.00010861,2]
[407660592,1772622646241,-1199.53034091,0.0001093,30]
[407660593,1772622646251,-3000.0,0.0001094,30]
[407660594,1772622646260,-3000.0,0.0001095,30]
[407660595,1772622646270,-6626.1520333,0.00010957,2]
[407660596,1772622646279,-500.0,0.00010958,2]
[407660597,1772622646290,-500.0,0.00010958,2]
[407660598,1772622646299,-1944.77,0.00010958,2]
[407660599,1772622646309,-594.2,0.00010958,2]
[407660600,1772622646319,-1460.46,0.00010958,2]
[407660601,1772622646329,-901.9,0.00010958,2]
[407660602,1772622646338,-597.53925693,0.00010958,2]
[407660603,1772622646348,-797.83,0.00010958,2]
[407660604,1772622646359,-500.0,0.00010958,2]
[407660605,1772622646370,-2435.93,0.00010958,2]
[407660606,1772622646381,-500.0,0.00010958,2]
[407660607,1772622646390,-1000.0,0.00010958,2]
[407660608,1772622646402,-500.0,0.00010958,2]
[407660609,1772622646412,-538.67653572,0.00010958,2]
[407660610,1772622646422,-8587.87250321,0.00010958,2]
[407660611,1772622646486,-12543.21337303,0.00010958,2]
[407660612,1772622646496,-500.0,0.00010958,2]
[407660613,1772622646507,-500.0,0.00010958,2]
[407660614,1772622646518,-500.0,0.00010958,2]
[407660615,1772622646527,-500.0,0.00010958,2]
[407660616,1772622646536,-500.0,0.00010958,2]
[407660617,1772622646546,-500.0,0.00010958,2]
[407660618,1772622646557,-500.0,0.00010958,2]
[407660619,1772622646567,-500.0,0.00010958,2]
[407660620,1772622646577,-780.09,0.00010958,2]
[407660621,1772622646588,-500.0,0.00010958,2]
[407660622,1772622646599,-500.0,0.00010958,2]
[407660623,1772622646610,-500.0,0.00010958,2]
[407660624,1772622646619,-992.77,0.00010958,2]
[407660625,1772622646630,-1780.52,0.00010958,2]
[407660626,1772622646639,-908.64,0.00010958,2]
[407660627,1772622646650,-500.0,0.00010958,2]
[407660628,1772622646660,-500.0,0.00010958,2]
[407660629,1772622646670,-2788.65,0.00010958,2]
[407660630,1772622646679,-465.54079597,0.00010958,2]
[407660631,1772622646690,-500.0,0.00010958,2]
[407660632,1772622646701,-625.81,0.00010958,2]
[407660633,1772622646711,-500.0,0.00010958,2]
[407660634,1772622646720,-2613.26,0.00010958,2]
[407660635,1772622646730,-500.0,0.00010958,2]
[407660636,1772622646740,-500.0,0.00010958,2]
[407660637,1772622646751,-500.0,0.00010958,2]
[407660638,1772622646762,-862.03,0.00010958,2]
[407660639,1772622646773,-500.0,0.00010958,2]
[407660640,1772622646783,-500.0,0.00010958,2]
[407660641,1772622646794,-500.0,0.00010958,2]
[407660642,1772622646804,-535.13,0.00010958,2]
[407660643,1772622646815,-1596.4,0.00010958,2]
[407660644,1772622646824,-500.0,0.00010958,2]
[407660645,1772622646833,-500.0,0.00010958,2]
[407660646,1772622646843,-697.9,0.00010958,2]
[407660647,1772622646852,-500.0,0.00010958,2]
[407660648,1772622646862,-500.0,0.00010958,2]
[407660649,1772622646873,-914.86,0.00010958,2]
[407660650,1772622646884,-500.0,0.00010958,2]
[407660651,1772622646895,-500.0,0.00010958,2]
[407660652,1772622646905,-2609.77,0.00010958,2]
[407660653,1772622646914,-500.0,0.00010958,2]
[407660654,1772622646924,-500.0,0.00010958,2]
[407660655,1772622646943,-500.0,0.00010958,2]
[407660656,1772622646961,-797.23,0.00010958,2]
[407660657,1772622646971,-500.0,0.00010958,2]
[407660658,1772622646984,-512.68865,0.00010958,2]
[407660659,1772622646994,-500.0,0.00010958,2]
[407660660,1772622647006,-500.0,0.00010958,2]
[407660661,1772622647016,-629.98,0.00010958,2]
[407660662,1772622647027,-500.0,0.00010958,2]
[407660663,1772622647037,-500.0,0.00010958,2]
[407660664,1772622647050,-500.0,0.00010958,2]
[407660665,1772622647062,-500.0,0.00010958,2]
[407660666,1772622647075,-952.55,0.00010958,2]
[407660667,1772622647085,-500.0,0.00010958,2]
[407660668,1772622647097,-715.32,0.00010958,2]
[407660669,1772622647106,-500.0,0.00010958,2]
[407660670,1772622647117,-500.0,0.00010958,2]
[407660671,1772622647127,-500.0,0.00010958,2]
[407660672,1772622647138,-500.0,0.00010958,2]
[407660673,1772622647148,-500.0,0.00010958,2]
[407660674,1772622647158,-500.0,0.00010958,2]
[407660675,1772622647169,-500.0,0.00010958,2]
[407660676,1772622647179,-226.19577075,0.00010958,2]
[407660677,1772622647193,-302.20422925,0.00010958,2]
[407660678,1772622647205,-150.7783591,0.00010958,2]
[407660679,1772622647217,-881.07,0.00010958,2]
[407660680,1772622647228,-1236.66,0.00010958,2]
[407660681,1772622647240,-500.0,0.00010958,2]
[407660682,1772622647251,-500.0,0.00010958,2]
[407660683,1772622647262,-828.92,0.00010958,2]
[407660684,1772622647272,-500.0,0.00010958,2]
[407660685,1772622647283,-500.0,0.00010958,2]
[407660686,1772622647294,-500.0,0.00010958,2]
[407660687,1772622647304,-500.0,0.00010958,2]
[407660688,1772622647314,-500.0,0.00010958,2]
[407660689,1772622647324,-736.08,0.00010958,2]
[407660690,1772622647334,-500.0,0.00010958,2]
[407660691,1772622647343,-555.36,0.00010958,2]
[407660692,1772622647353,-500.0,0.00010958,2]
[407660693,1772622647368,-543.46,0.00010958,2]
[407660694,1772622647378,-500.0,0.00010958,2]
[407660695,1772622647388,-823.41,0.00010958,2]
[407660696,1772622647399,-1220.34,0.00010958,2]
[407660697,1772622647408,-3961.53,0.00010958,2]
[407660698,1772622647418,-500.0,0.00010958,2]
[407660699,1772622647428,-500.0,0.00010958,2]
[407660700,1772622647439,-695.28,0.00010958,2]
[407660701,1772622647449,-701.0,0.00010958,2]
[407660702,1772622647459,-585.21924814,0.00010958,2]
[407660703,1772622647468,-500.0,0.00010958,2]
[407660704,1772622647478,-500.0,0.00010958,2]
[407660705,1772622647487,-500.0,0.00010958,2]
[407660706,1772622647496,-500.0,0.00010958,2]
[407660707,1772622647505,-500.0,0.00010958,2]
[407660708,1772622647516,-688.44,0.00010958,2]
[407660709,1772622647530,-1801.12,0.00010958,2]
[407660710,1772622647540,-500.0,0.00010958,2]
[407660711,1772622647550,-1160.32,0.00010958,2]
[407660712,1772622647560,-500.0,0.00010958,2]
[407660713,1772622647570,-500.0,0.00010958,2]
[407660714,1772622647580,-1307.36,0.00010958,2]
[407660715,1772622647590,-500.0,0.00010958,2]
[407660716,1772622647600,-500.0,0.00010958,2]
[407660717,1772622647608,-500.0,0.00010958,2]
[407660718,1772622647618,-500.0,0.00010958,2]
[407660719,1772622647628,-500.0,0.00010958,2]
[407660720,1772622647638,-384.89921377,0.00010958,2]
[407660721,1772622647648,-534.61246689,0.00010958,2]
[407660722,1772622647658,-500.0,0.00010958,2]
[407660723,1772622647667,-5521.12,0.00010958,2]
[407660724,1772622647677,-500.0,0.00010958,2]
[407660725,1772622647687,-500.0,0.00010958,2]
[407660726,1772622647697,-500.0,0.00010958,2]
[407660727,1772622647707,-500.0,0.00010958,2]
[407660728,1772622647716,-799.34,0.00010958,2]
[407660729,1772622647726,-272.10900826,0.00010958,2]
[407660730,1772622647737,-500.0,0.00010958,2]
[407660731,1772622647749,-500.0,0.00010958,2]
[407660732,1772622647759,-608.9,0.00010958,2]
[407660733,1772622647770,-1562.09,0.00010958,2]
[407660734,1772622647780,-534.36,0.00010958,2]
[407660735,1772622647789,-500.0,0.00010958,2]
[407660736,1772622647799,-607.12755356,0.00010958,2]
[407660737,1772622647808,-576.54702367,0.00010958,2]
[407660738,1772622647818,-700.91,0.00010958,2]
[407660739,1772622647829,-500.0,0.00010958,2]
[407660740,1772622647838,-500.0,0.00010958,2]
[407660741,1772622647849,-500.0,0.00010958,2]
[407660742,1772622647858,-742.62,0.00010958,2]
[407660743,1772622647868,-507.8,0.00010958,2]
[407660744,1772622647878,-810.25,0.00010958,2]
[407660745,1772622647888,-500.0,0.00010958,2]
[407660746,1772622647898,-630.21,0.00010958,2]
[407660747,1772622647908,-500.0,0.00010958,2]
[407660748,1772622647917,-650.74,0.00010958,2]
[407660749,1772622647927,-1303.59,0.00010958,2]
[407660750,1772622647938,-500.0,0.00010958,2]
[407660751,1772622647949,-500.0,0.00010958,2]
[407660752,1772622647959,-500.0,0.00010958,2]
[407660753,1772622647971,-585.73,0.00010958,2]
[407660754,1772622647981,-500.0,0.00010958,2]
[407660755,1772622647991,-500.0,0.00010958,2]
[407660756,1772622648004,-500.0,0.00010958,2]
[407660757,1772622648015,-500.0,0.00010958,2]
[407660758,1772622648028,-500.0,0.00010958,2]
[407660759,1772622648038,-1640.98,0.00010958,2]
[407660760,1772622648049,-500.0,0.00010958,2]
[407660761,1772622648060,-1551.5,0.00010958,2]
[407660762,1772622648076,-1040.6,0.00010958,2]
[407660763,1772622648089,-934.42,0.00010958,2]
[407660764,1772622648100,-500.0,0.00010958,2]
[407660765,1772622648121,-1122.09,0.00010958,2]
[407660766,1772622648134,-500.0,0.00010958,2]
[407660767,1772622648144,-500.0,0.00010958,2]
[407660768,1772622648162,-1215.47,0.00010958,2]
[407660769,1772622648173,-500.0,0.00010958,2]
[407660770,1772622648184,-3674.7,0.00010958,2]
[407660771,1772622648198,-500.0,0.00010958,2]
[407660772,1772622648215,-500.0,0.00010958,2]
[407660773,1772622648225,-1012.91,0.00010958,2]
[407660774,1772622648234,-929.14,0.00010958,2]
[407660775,1772622648246,-500.0,0.00010958,2]
[407660776,1772622648258,-881.89817315,0.00010958,2]
[407660799,1772623802442,163.39,6.9e-05,2]
[407660892,1772623838488,-5000.0,7.184e-05,2]
[407660893,1772623838497,-749.48986662,7.257e-05,2]
[407660894,1772623838775,-4250.51013338,7.257e-05,2]
[407660895,1772623838786,-5000.0,7.33e-05,2]
[407660896,1772623838796,-523.0,7.33e-05,2]
[407660897,1772623838806,-300.0,7.478e-05,2]
[407660898,1772623838817,-163.39,7.6e-05,2]
[407660899,1772623838828,-430.35931571,7.67e-05,2]
[407660900,1772623838838,-420.0,8.226e-05,2]
[407660901,1772623838849,-300.0,8.61e-05,2]
[407660902,1772623838860,-300.0,8.61e-05,2]
[407660903,1772623838871,-300.0,8.61e-05,2]
[407660904,1772623838886,-300.0,8.61e-05,2]
[407660905,1772623838900,-300.0,8.61e-05,2]
[407660906,1772623838911,-300.0,8.61e-05,2]
[407660907,1772623838922,-300.0,8.61e-05,2]
[407660908,1772623838932,-300.0,8.61e-05,2]
[407660909,1772623838942,-300.0,8.61e-05,2]
[407660910,1772623838953,-300.0,8.61e-05,2]
[407660911,1772623838964,-300.0,8.61e-05,2]
[407660912,1772623838973,-300.0,8.61e-05,2]
[407660913,1772623838983,-300.0,8.61e-05,2]
[407660914,1772623838993,-300.0,8.61e-05,2]
[407660915,1772623839006,-300.0,8.61e-05,2]
[407660916,1772623839020,-587.0,9.048e-05,2]
[407660917,1772623839031,-507.82399254,9.67e-05,2]
[407660918,1772623839044,-325.75904333,9.783e-05,2]
[407660919,1772623839055,-823.0,9.953e-05,2]
[407660920,1772623839069,-436.19,0.0001,3]
[407660921,1772623839081,-363.92702817,0.00010137,2]
[407660922,1772623839094,-523.53086564,0.00010137,2]
[407660923,1772623839104,-2230.315306,0.00010505,2]
[407660924,1772623839115,-500.0,0.00010669,2]
[407660925,1772623839127,-500.0,0.00010669,2]
[407660926,1772623839137,-500.0,0.00010669,2]
[407660927,1772623839147,-500.0,0.00010669,2]
[407660928,1772623839157,-500.0,0.00010669,2]
[407660929,1772623839170,-500.0,0.00010669,2]
[407660930,1772623839182,-500.0,0.00010669,2]
[407660931,1772623839194,-500.0,0.00010669,2]
[407660932,1772623839206,-312.42516795,0.00010669,2]
[407660933,1772623839220,-500.0,0.00010669,2]
[407660934,1772623839230,-500.0,0.00010669,2]
[407660935,1772623839241,-508.13692673,0.00010669,2]
[407660936,1772623839251,-500.0,0.00010669,2]
[407660937,1772623839264,-500.0,0.00010669,2]
[407660938,1772623839275,-500.0,0.00010669,2]
[407660939,1772623839284,-500.0,0.00010669,2]
[407660940,1772623839293,-500.0,0.00010669,2]
[407660941,1772623839302,-500.0,0.00010669,2]
[407660942,1772623839313,-500.0,0.00010669,2]
[407660943,1772623839322,-500.0,0.00010669,2]
[407660944,1772623839331,-500.0,0.00010669,2]
[407660945,1772623839343,-436.79925223,0.0001067,2]
[407660946,1772623839354,-150.0,0.00010683,2]
[407660947,1772623839363,-150.0,0.00010684,2]
[407660948,1772623839374,-181.08010149,0.00010689,2]
[407660949,1772623839384,-289.90916485,0.00010689,2]
[407660950,1772623839397,-168.3888056,0.00010689,2]
[407660951,1772623839406,-174.61919141,0.00010689,2]
[407660952,1772623839417,-181.08010149,0.00010689,2]
[407660953,1772623839426,-187.78006525,0.00010689,2]
[407660954,1772623839435,-194.72792766,0.00010689,2]
[407660955,1772623839444,-201.93286099,0.00010689,2]
[407660956,1772623839453,-209.40437684,0.00010689,2]
[407660957,1772623839464,-233.54863681,0.00010689,2]
[407660958,1772623839474,-557.5788265,0.00010689,2]
[407660959,1772623839484,-500.0,0.00010695,2]
[407660960,1772623839493,-455.232,0.00010696,2]
[407660961,1772623839503,-170.27926874,0.00010738,2]
[407660962,1772623839512,-150.0,0.00010739,2]
[407660963,1772623839522,-1152.0,0.00010949,2]
[407660964,1772623839531,-600.0,0.00010952,2]
[407660965,1772623839540,-177.211,0.00010957,2]
[407660966,1772623839549,-291.68881117,0.00010957,2]
[407660967,1772623839557,-500.0,0.00010958,2]
[407660968,1772623839567,-151.0,0.00010958,2]
[407660969,1772623839577,-2000.0,0.00010958,2]
[407660970,1772623839587,-1175.98,0.00010958,2]
[407660971,1772623839597,-200.0,0.00010958,2]
[407660972,1772623839606,-500.0,0.00010958,2]
[407660973,1772623839615,-532.22,0.00010958,2]
[407660974,1772623839625,-515.97699614,0.00010958,2]
[407660975,1772623839634,-1169.5,0.00010958,2]
[407660976,1772623839644,-500.0,0.00010958,2]
[407660977,1772623839654,-794.38,0.00010958,2]
[407660978,1772623839663,-500.0,0.00010958,2]
[407660979,1772623839672,-500.0,0.00010958,2]
[407660980,1772623839681,-500.0,0.00010958,2]
[407660981,1772623839689,-705.41,0.00010958,2]
[407660982,1772623839698,-500.0,0.00010958,2]
[407660983,1772623839710,-500.0,0.00010958,2]
[407660984,1772623839720,-500.0,0.00010958,2]
[407660985,1772623839729,-500.0,0.00010958,2]
[407660986,1772623839739,-666.31,0.00010958,2]
[407660987,1772623839751,-500.0,0.00010958,2]
[407660988,1772623839762,-1111.97,0.00010958,2]
[407660989,1772623839771,-520.82,0.00010958,2]
[407660990,1772623839782,-500.0,0.00010958,2]
[407660991,1772623839791,-500.0,0.00010958,2]
[407660992,1772623839801,-671.79,0.00010958,2]
[407660993,1772623839810,-500.0,0.00010958,2]
[407660994,1772623839820,-500.0,0.00010958,2]
[407660995,1772623839830,-4260.2738196,0.00010958,2]